fUSD/lending_fUSD_20251217
["ID","MTS","AMOUNT","RATE_DAILY","PERIOD"]
[398929198,1766002244494,-150.0,0.00015815,2]
[398929199,1766002244503,-150.0,0.00015816,2]
[398929200,1766002244513,-150.0,0.00015826,2]
[398929201,1766002244523,-150.0,0.00015836,2]
[398929202,1766002244532,-1477.19,0.00015838,2]
[398929203,1766002244541,-150.0,0.00015841,2]
[398929204,1766002244551,-150.0,0.00015842,2]
[398929205,1766002244560,-150.0,0.00015844,2]
[398929206,1766002244570,-150.0,0.00015847,2]
[398929207,1766002244579,-150.0,0.00015854,2]
[398929208,1766002244589,-150.0,0.00015854,2]
[398929209,1766002244598,-150.0,0.00015854,2]
[398929210,1766002244607,-150.0,0.00015854,2]
[398929211,1766002244617,-150.0,0.00015863,2]
[398929212,1766002244626,-150.0,0.00015868,2]
[398929213,1766002244635,-150.0,0.00015873,2]
[398929214,1766002244645,-150.0,0.00015878,2]
[398929215,1766002244654,-150.0,0.0001588,2]
[398929216,1766002244664,-150.0,0.00015882,2]
[398929217,1766002244673,-150.0,0.00015888,2]
[398929218,1766002244682,-150.0,0.00015889,2]
[398929219,1766002244691,-721.0,0.0001589,2]
[398929220,1766002244700,-721.0,0.0001589,2]
[398929221,1766002244710,-721.0,0.0001589,2]
[398929222,1766002244719,-150.0,0.00015892,2]
[398929223,1766002244729,-150.0,0.00015894,2]
[398929224,1766002244741,-150.0,0.00015903,2]
[398929225,1766002244751,-150.0,0.00015909,2]
[398929226,1766002244764,-150.0,0.00015915,2]
[398929227,1766002244776,-150.0,0.00015915,2]
[398929228,1766002244787,-150.0,0.0001592,2]
[398929229,1766002244796,-150.0,0.00015929,2]
[398929230,1766002244805,-150.0,0.0001593,2]
[398929231,1766002244814,-150.0,0.00015932,2]
[398929232,1766002244822,-188.73,0.00015932,2]
[398929233,1766002244831,-150.0,0.00015941,2]
[398929234,1766002244840,-150.0,0.00015941,2]
[398929235,1766002244849,-150.0,0.00015951,2]
[398929236,1766002244858,-150.0,0.00015952,2]
[398929237,1766002244867,-150.0,0.00015959,2]
[398929238,1766002244876,-188.73,0.00015961,2]
[398929239,1766002244886,-150.0,0.00015961,2]
[398929240,1766002244897,-150.0,0.00015967,2]
[398929241,1766002244907,-150.0,0.00015967,2]
[398929242,1766002244916,-150.0,0.00015967,2]
[398929243,1766002244926,-150.0,0.00015971,2]
[398929244,1766002244936,-1398.69219027,0.00015971,2]
[398929245,1766002244945,-150.0,0.00015989,2]
[398929246,1766002244955,-150.0,0.00015991,2]
[398929247,1766002244964,-150.0,0.00015992,2]
[398929248,1766002244974,-150.0,0.00015993,2]
[398929249,1766002244984,-150.0,0.00015995,2]
[398929250,1766002244994,-150.0,0.00015999,2]
[398929251,1766002245004,-150.0,0.00016005,2]
[398929252,1766002245014,-150.0,0.00016013,2]
[398929253,1766002245024,-150.0,0.00016016,2]
[398929254,1766002245033,-150.0,0.00016019,2]
[398929255,1766002245043,-150.0,0.0001602,2]
[398929256,1766002245052,-1000.0,0.00016021,2]
[398929257,1766002245062,-669.93256308,0.00016021,2]
[398929258,1766002245071,-1000.0,0.00016021,2]
[398929259,1766002245080,-1000.0,0.00016021,2]
[398929260,1766002245090,-1000.0,0.00016021,2]
[398929261,1766002245099,-1000.0,0.00016021,2]
[398929262,1766002245109,-1000.0,0.00016021,2]
[398929263,1766002245118,-1000.0,0.00016021,2]
[398929264,1766002245128,-1000.0,0.00016021,2]
[398929265,1766002245137,-1000.0,0.00016021,2]
[398929266,1766002245146,-1000.0,0.00016021,2]
[398929267,1766002245155,-1000.0,0.00016021,2]
[398929268,1766002245165,-1000.0,0.00016021,2]
[398929269,1766002245174,-1000.0,0.00016021,2]
[398929270,1766002245184,-1000.0,0.00016021,2]
[398929271,1766002245193,-150.0,0.00016026,2]
[398929272,1766002245202,-500.0,0.00016033,2]
[398929273,1766002245211,-200.0,0.00016033,2]
[398929274,1766002245220,-150.0,0.00016033,2]
[398929275,1766002245230,-587.0,0.00016034,2]
[398929276,1766002245239,-587.0,0.00016034,2]
[398929277,1766002245249,-150.0,0.00016038,2]
[398929278,1766002245258,-150.0,0.00016043,2]
[398929279,1766002245267,-150.0,0.00016046,2]
[398929280,1766002245276,-150.0,0.00016049,2]
[398929281,1766002245285,-150.0,0.00016052,2]
[398929282,1766002245294,-150.0,0.00016054,2]
[398929283,1766002245303,-150.0,0.00016063,2]
[398929284,1766002245317,-150.0,0.00016072,2]
[398929285,1766002245338,-150.0,0.00016072,2]
[398929286,1766002245356,-150.0,0.00016075,2]
[398929287,1766002245374,-150.0,0.00016078,2]
[398929288,1766002245393,-150.0,0.00016078,2]
[398929289,1766002245413,-150.0,0.0001608,2]
[398929290,1766002245432,-150.0,0.00016096,2]
[398929291,1766002245451,-150.0,0.00016098,2]
[398929292,1766002245470,-150.0,0.000161,2]
[398929293,1766002245490,-150.0,0.00016108,2]
[398929294,1766002245509,-1477.19,0.00016112,2]
[398929295,1766002245526,-693.08117626,0.00016116,2]
[398929296,1766002245540,-5679.68819907,0.00016116,2]
[398929297,1766002245559,-9999.99,0.00016116,2]
[398929298,1766002245572,-150.0,0.00016116,2]
[398929299,1766002245590,-150.0,0.00016117,2]
[398929300,1766002245602,-150.0,0.00016118,2]
[398929301,1766002245617,-150.0,0.00016124,2]
[398929302,1766002245633,-150.0,0.00016137,2]
[398929303,1766002245648,-150.0,0.00016137,2]
[398929304,1766002245662,-150.0,0.00016137,2]
[398929305,1766002245677,-150.0,0.00016137,2]
[398929306,1766002245692,-150.0,0.00016137,2]
[398929307,1766002245706,-150.0,0.00016137,2]
[398929308,1766002245733,-150.0,0.00016137,2]
[398929310,1766002245749,-150.0,0.00016137,2]
[398929313,1766002245764,-18870.99957867,0.00016139,2]
[398929315,1766002245779,-150.0,0.0001615,2]
[398929316,1766002245795,-273.07,0.00016154,2]
[398929317,1766002245810,-150.0,0.00016156,2]
[398929318,1766002245825,-150.0,0.00016157,2]
[398929319,1766002245841,-150.0,0.00016158,2]
[398929320,1766002245856,-150.0,0.00016166,2]
[398929321,1766002245872,-21848.83616192,0.00016166,2]
[398929322,1766002245889,-150.0,0.00016174,2]
[398929323,1766002245905,-150.0,0.00016176,2]
[398929324,1766002245922,-150.0,0.00016178,2]
[398929325,1766002245938,-150.0,0.00016194,2]
[398929326,1766002245954,-150.0,0.00016196,2]
[398929327,1766002245970,-150.0,0.00016196,2]
[398929329,1766002245988,-150.0,0.00016199,2]
[398929330,1766002246004,-150.0,0.00016202,2]
[398929331,1766002246020,-150.0,0.00016202,2]
[398929332,1766002246038,-150.0,0.00016211,2]
[398929333,1766002246054,-500.0,0.00016215,2]
[398929334,1766002246069,-500.0,0.00016215,2]
[398929335,1766002246085,-392.33025229,0.00016215,2]
[398929336,1766002246099,-500.0,0.00016215,2]
[398929337,1766002246114,-504.89372768,0.00016215,2]
[398929338,1766002246130,-500.0,0.00016215,2]
[398929339,1766002246145,-500.0,0.00016215,2]
[398929340,1766002246159,-150.0,0.0001622,2]
[398929341,1766002246174,-200.0,0.0001622,2]
[398929342,1766002246190,-150.0,0.00016222,2]
[398929343,1766002246204,-150.0,0.00016225,2]
[398929344,1766002246219,-150.0,0.00016228,2]
[398929345,1766002246235,-150.0,0.00016231,2]
[398929346,1766002246251,-150.0,0.00016236,2]
[398929347,1766002246266,-150.0,0.00016241,2]
[398929348,1766002246281,-150.0,0.00016248,2]
[398929349,1766002246295,-150.0,0.00016254,2]
[398929350,1766002246310,-150.0,0.00016255,2]
[398929351,1766002246326,-150.0,0.00016258,2]
[398929352,1766002246341,-150.0,0.00016261,2]
[398929353,1766002246356,-150.0,0.00016269,2]
[398929354,1766002246372,-150.0,0.00016275,2]
[398929356,1766002246387,-150.0,0.00016279,2]
[398929358,1766002246404,-150.0,0.00016281,2]
[398929361,1766002246419,-150.0,0.00016282,2]
[398929364,1766002246435,-150.0,0.00016283,2]
[398929365,1766002246451,-150.0,0.00016285,2]
[398929366,1766002246467,-150.0,0.00016303,2]
[398929367,1766002246483,-150.0,0.00016307,2]
[398929368,1766002246498,-150.0,0.00016307,2]
[398929369,1766002246513,-150.0,0.00016307,2]
[398929370,1766002246529,-150.0,0.00016313,2]
[398929371,1766002246544,-150.0,0.00016315,2]
[398929372,1766002246559,-150.0,0.00016322,2]
[398929373,1766002246574,-150.0,0.00016323,2]
[398929374,1766002246589,-150.0,0.00016333,2]
[398929375,1766002246603,-150.0,0.00016333,2]
[398929376,1766002246617,-150.0,0.00016342,2]
[398929377,1766002246632,-150.0,0.00016344,2]
[398929378,1766002246646,-150.0,0.00016345,2]
[398929379,1766002246662,-150.0,0.00016354,2]
[398929380,1766002246679,-150.0,0.00016359,2]
[398929381,1766002246696,-150.0,0.00016359,2]
[398929382,1766002246712,-150.0,0.00016365,2]
[398929383,1766002246727,-150.0,0.00016371,2]
[398929384,1766002246742,-150.0,0.0001638,2]
[398929385,1766002246757,-150.0,0.00016382,2]
[398929386,1766002246772,-150.0,0.00016385,2]
[398929387,1766002246787,-150.0,0.00016386,2]
[398929388,1766002246802,-1477.19,0.00016386,2]
[398929389,1766002246817,-150.0,0.00016392,2]
[398929390,1766002246831,-150.0,0.00016394,2]
[398929391,1766002246847,-150.0,0.00016395,2]
[398929392,1766002246861,-228.0,0.000164,2]
[398929393,1766002246875,-319.0,0.000164,2]
[398929394,1766002246890,-182.0,0.000164,2]
[398929395,1766002246905,-183.11478265,0.000164,2]
[398929396,1766002246920,-150.0,0.00016401,2]
[398929397,1766002246934,-150.0,0.00016406,2]
[398929398,1766002246949,-150.0,0.00016411,2]
[398929399,1766002246963,-150.0,0.0001642,2]
[398929400,1766002246978,-150.0,0.0001642,2]
[398929401,1766002246991,-150.0,0.0001642,2]
[398929402,1766002247005,-150.0,0.0001642,2]
[398929403,1766002247019,-150.0,0.00016427,2]
[398929404,1766002247034,-150.0,0.0001643,2]
[398929405,1766002247048,-150.0,0.00016432,2]
[398929406,1766002247062,-150.0,0.00016433,2]
[398929407,1766002247076,-1398.69219027,0.00016436,2]
[398929408,1766002247090,-500.0,0.00016437,2]
[398929409,1766002247105,-500.0,0.00016437,2]
[398929410,1766002247119,-500.0,0.00016437,2]
[398929411,1766002247134,-500.0,0.00016437,2]
[398929412,1766002247147,-500.0,0.00016437,2]
[398929413,1766002247162,-500.0,0.00016437,2]
[398929414,1766002247176,-500.0,0.00016437,2]
[398929415,1766002247189,-150.0,0.00016438,2]
[398929416,1766002247203,-300.0,0.00016438,2]
[398929417,1766002247217,-300.0,0.00016438,2]
[398929418,1766002247231,-300.0,0.00016438,2]
[398929419,1766002247245,-300.0,0.00016438,2]
[398929420,1766002247260,-300.0,0.00016438,2]
[398929421,1766002247274,-300.0,0.00016438,2]
[398929422,1766002247288,-300.0,0.00016438,2]
[398929423,1766002247302,-300.0,0.00016438,2]
[398929424,1766002247317,-300.0,0.00016438,2]
[398929425,1766002247330,-300.0,0.00016438,2]
[398929426,1766002247345,-300.0,0.00016438,2]
[398929427,1766002247360,-300.0,0.00016438,2]
[398929428,1766002247373,-300.0,0.00016438,2]
[398929429,1766002247388,-300.0,0.00016438,2]
[398929430,1766002247403,-300.0,0.00016438,2]
[398929431,1766002247417,-300.0,0.00016438,2]
[398929432,1766002247431,-300.0,0.00016438,2]
[398929433,1766002247445,-300.0,0.00016438,2]
[398929434,1766002247459,-300.0,0.00016438,2]
[398929435,1766002247473,-300.0,0.00016438,2]
[398929436,1766002247489,-300.0,0.00016438,2]
[398929437,1766002247503,-300.0,0.00016438,2]
[398929438,1766002247518,-300.0,0.00016438,2]
[398929439,1766002247532,-284.10900433,0.00016438,2]
[398929440,1766002247547,-10385.24,0.00016438,2]
[398929441,1766002247561,-800.0,0.00016438,2]
[398929442,1766002247576,-150.0,0.00016448,2]
[398929443,1766002247590,-150.0,0.00016458,2]
[398929444,1766002247603,-150.0,0.00016459,2]
[398929445,1766002247616,-500.0,0.00016462,2]
[398929446,1766002247630,-150.0,0.00016464,2]
[398929447,1766002247645,-150.0,0.00016464,2]
[398929448,1766002247660,-150.0,0.00016468,2]
[398929449,1766002247674,-150.0,0.00016469,2]
[398929450,1766002247689,-150.0,0.00016473,2]
[398929451,1766002247703,-150.0,0.00016477,2]
[398929452,1766002247717,-150.0,0.00016488,2]
[398929453,1766002247731,-150.0,0.00016489,2]
[398929454,1766002247746,-150.0,0.0001649,2]
[398929455,1766002247759,-150.0,0.00016496,2]
[398929456,1766002247773,-150.0,0.00016501,2]
[398929457,1766002247787,-150.0,0.00016506,2]
[398929458,1766002247802,-150.0,0.0001651,2]
[398929459,1766002247815,-150.0,0.00016512,2]
[398929460,1766002247830,-150.0,0.00016516,2]
[398929461,1766002247843,-150.0,0.00016518,2]
[398929462,1766002247858,-18870.99957867,0.00016519,2]
[398929463,1766002247872,-1444.66266735,0.00016523,2]
[398929464,1766002247885,-500.0,0.00016524,2]
[398929465,1766002247899,-500.0,0.00016524,2]
[398929466,1766002247912,-500.0,0.00016524,2]
[398929467,1766002247927,-1362.39,0.00016524,2]
[398929468,1766002247940,-536.90196628,0.00016524,2]
[398929469,1766002247955,-500.0,0.00016524,2]
[398929470,1766002247970,-150.0,0.00016531,2]
[398929471,1766002247983,-21848.83616192,0.00016533,2]
[398929472,1766002247999,-150.0,0.00016533,2]
[398929473,1766002248013,-150.0,0.00016542,2]
[398929474,1766002248027,-150.0,0.00016543,2]
[398929475,1766002248040,-150.0,0.00016547,2]
[398929476,1766002248054,-150.0,0.00016551,2]
[398929477,1766002248067,-150.0,0.00016552,2]
[398929478,1766002248080,-150.0,0.00016562,2]
[398929479,1766002248094,-150.0,0.00016562,2]
[398929480,1766002248108,-151.0,0.00016565,2]
[398929481,1766002248646,-150.0,0.00016568,2]
[398929482,1766002248680,-1500.0,0.00016568,2]
[398929483,1766002248700,-1500.0,0.00016568,2]
[398929484,1766002248709,-211.82211152,0.00016568,2]
[398929485,1766002248719,-1570.99793084,0.00016568,2]
[398929486,1766002248730,-1500.0,0.00016568,2]
[398929487,1766002248739,-1005.15949954,0.00016568,2]
[398929488,1766002248748,-412.77072923,0.00016568,2]
[398929489,1766002248757,-1500.0,0.00016568,2]
[398929490,1766002248766,-1500.0,0.00016568,2]
[398929491,1766002248775,-1500.0,0.00016568,2]
[398929492,1766002248785,-1591.38673749,0.00016568,2]
[398929493,1766002248794,-1500.0,0.00016568,2]
[398929494,1766002248803,-1500.0,0.00016568,2]
[398929495,1766002248812,-150.0,0.00016571,2]
[398929496,1766002248821,-150.0,0.00016572,2]
[398929497,1766002248830,-150.0,0.00016576,2]
[398929498,1766002248839,-207.4,0.0001658,2]
[398929499,1766002248850,-150.0,0.0001658,2]
[398929500,1766002248859,-500.0,0.00016581,2]
[398929501,1766002248868,-200.0,0.00016581,2]
[398929502,1766002248877,-150.0,0.00016591,2]
[398929503,1766002248887,-150.0,0.00016593,2]
[398929504,1766002248895,-150.0,0.00016594,2]
[398929505,1766002248909,-150.0,0.00016594,2]
[398929506,1766002248918,-150.0,0.00016606,2]
[398929507,1766002248927,-150.0,0.00016609,2]
[398929508,1766002248936,-150.0,0.00016613,2]
[398929509,1766002248945,-150.0,0.00016617,2]
[398929510,1766002248953,-150.0,0.0001662,2]
[398929511,1766002248963,-150.0,0.00016622,2]
[398929512,1766002248971,-150.0,0.00016631,2]
[398929513,1766002248980,-150.0,0.00016634,2]
[398929514,1766002248989,-150.0,0.00016635,2]
[398929515,1766002248998,-150.0,0.00016647,2]
[398929516,1766002249007,-150.0,0.00016647,2]
[398929517,1766002249017,-150.0,0.00016647,2]
[398929518,1766002249026,-500.0,0.00016649,2]
[398929519,1766002249035,-500.0,0.00016649,2]
[398929520,1766002249044,-500.0,0.00016649,2]
[398929521,1766002249053,-500.0,0.00016649,2]
[398929522,1766002249062,-500.0,0.00016649,2]
[398929523,1766002249071,-500.0,0.00016649,2]
[398929524,1766002249080,-500.0,0.00016649,2]
[398929525,1766002249089,-150.0,0.00016654,2]
[398929526,1766002249098,-150.0,0.00016655,2]
[398929527,1766002249108,-1477.19,0.0001666,2]
[398929528,1766002249117,-150.0,0.00016664,2]
[398929529,1766002249126,-150.0,0.0001667,2]
[398929530,1766002249135,-150.0,0.00016673,2]
[398929531,1766002249144,-150.0,0.00016676,2]
[398929532,1766002249153,-150.0,0.00016684,2]
[398929533,1766002249162,-150.0,0.00016691,2]
[398929534,1766002249171,-150.0,0.00016693,2]
[398929535,1766002249180,-500.0,0.00016695,2]
[398929536,1766002249190,-150.0,0.00016696,2]
[398929537,1766002249199,-150.0,0.00016699,2]
[398929538,1766002249208,-150.0,0.00016703,2]
[398929539,1766002249219,-150.0,0.00016703,2]
[398929540,1766002249229,-150.0,0.0001671,2]
[398929541,1766002249239,-150.0,0.00016717,2]
[398929542,1766002249249,-150.0,0.00016722,2]
[398929543,1766002249258,-150.0,0.00016723,2]
[398929544,1766002249267,-150.0,0.00016725,2]
[398929545,1766002249276,-150.0,0.00016725,2]
[398929546,1766002249286,-2291.85364901,0.00016727,2]
[398929547,1766002249295,-150.0,0.00016728,2]
[398929548,1766002249304,-150.0,0.00016732,2]
[398929549,1766002249313,-150.0,0.00016738,2]
[398929550,1766002249323,-150.0,0.00016744,2]
[398929551,1766002249332,-150.0,0.00016749,2]
[398929552,1766002249341,-150.0,0.00016751,2]
[398929553,1766002249350,-150.0,0.00016752,2]
[398929554,1766002249359,-150.0,0.00016758,2]
[398929555,1766002249369,-150.0,0.0001676,2]
[398929556,1766002249378,-150.0,0.00016765,2]
[398929557,1766002249387,-150.0,0.00016777,2]
[398929558,1766002249400,-150.0,0.00016779,2]
[398929559,1766002249409,-150.0,0.00016781,2]
[398929560,1766002249420,-150.0,0.00016789,2]
[398929561,1766002249429,-150.0,0.00016798,2]
[398929562,1766002249438,-150.0,0.000168,2]
[398929563,1766002249447,-150.0,0.00016802,2]
[398929564,1766002249457,-250.0,0.00016803,2]
[398929565,1766002249466,-150.0,0.00016803,2]
[398929566,1766002249477,-150.0,0.00016811,2]
[398929567,1766002249486,-150.0,0.00016816,2]
[398929568,1766002249496,-150.0,0.00016821,2]
[398929569,1766002249505,-150.0,0.00016828,2]
[398929570,1766002249514,-150.0,0.0001683,2]
[398929571,1766002249523,-7640.86397139,0.0001683,2]
[398929572,1766002249533,-150.0,0.00016835,2]
[398929573,1766002249542,-150.0,0.00016839,2]
[398929574,1766002249551,-150.0,0.0001684,2]
[398929575,1766002249560,-150.0,0.00016841,2]
[398929576,1766002249569,-150.0,0.00016845,2]
[398929577,1766002249578,-200.01825375,0.0001685,2]
[398929578,1766002249588,-150.0,0.00016856,2]
[398929579,1766002249597,-150.0,0.00016856,2]
[398929580,1766002249606,-150.0,0.00016862,2]
[398929581,1766002249615,-200.0,0.00016864,2]
[398929582,1766002249625,-150.0,0.00016865,2]
[398929583,1766002249634,-150.0,0.00016868,2]
[398929584,1766002249643,-150.0,0.00016869,2]
[398929585,1766002249653,-150.0,0.00016873,2]
[398929586,1766002249662,-150.0,0.00016876,2]
[398929587,1766002249671,-150.0,0.00016882,2]
[398929588,1766002249680,-150.0,0.00016883,2]
[398929589,1766002249689,-698.29122795,0.00016886,2]
[398929590,1766002249698,-302.01604807,0.00016887,2]
[398929591,1766002249707,-698.29122791,0.00016889,2]
[398929592,1766002249716,-153.73301862,0.0001689,2]
[398929593,1766002249725,-698.29122791,0.00016892,2]
[398929594,1766002249735,-302.01604806,0.00016894,2]
[398929595,1766002249745,-698.29122791,0.00016894,2]
[398929596,1766002249754,-190.11155961,0.00016897,2]
[398929597,1766002249763,-2316.34899588,0.00016897,2]
[398929598,1766002249772,-698.29122791,0.00016897,2]
[398929599,1766002249780,-500.0,0.00016898,2]
[398929600,1766002249789,-500.0,0.00016898,2]
[398929601,1766002249799,-514.77254056,0.00016898,2]
[398929602,1766002249808,-500.0,0.00016898,2]
[398929603,1766002249817,-500.0,0.00016898,2]
[398929604,1766002249826,-150.0,0.00016898,2]
[398929605,1766002249836,-500.0,0.00016899,2]
[398929606,1766002249844,-500.0,0.00016899,2]
[398929607,1766002249853,-500.0,0.00016899,2]
[398929608,1766002249862,-617.59279202,0.00016899,2]
[398929609,1766002249872,-500.0,0.00016899,2]
[398929610,1766002249881,-500.0,0.00016899,2]
[398929611,1766002249890,-500.0,0.00016899,2]
[398929612,1766002249900,-500.0,0.00016899,2]
[398929613,1766002249909,-500.0,0.00016899,2]
[398929614,1766002249919,-309.99245647,0.00016899,2]
[398929615,1766002249929,-500.0,0.00016899,2]
[398929616,1766002249938,-500.0,0.00016899,2]
[398929617,1766002249947,-1362.39,0.00016899,2]
[398929618,1766002249957,-500.0,0.00016899,2]
[398929619,1766002249966,-1362.39,0.00016899,2]
[398929620,1766002249975,-1362.39,0.00016899,2]
[398929621,1766002249985,-1362.39,0.00016899,2]
[398929622,1766002249998,-504.05914821,0.00016899,2]
[398929623,1766002250008,-500.0,0.00016899,2]
[398929624,1766002250017,-500.0,0.00016899,2]
[398929625,1766002250027,-500.0,0.00016899,2]
[398929626,1766002250036,-500.0,0.00016899,2]
[398929627,1766002250046,-500.0,0.00016899,2]
[398929628,1766002250056,-500.0,0.00016899,2]
[398929629,1766002250066,-500.0,0.00016899,2]
[398929630,1766002250076,-500.0,0.00016899,2]
[398929631,1766002250086,-500.0,0.00016899,2]
[398929632,1766002250095,-500.0,0.00016899,2]
[398929633,1766002250104,-500.0,0.00016899,2]
[398929634,1766002250114,-500.0,0.00016899,2]
[398929635,1766002250123,-500.0,0.00016899,2]
[398929636,1766002250132,-500.0,0.00016899,2]
[398929637,1766002250141,-500.0,0.00016899,2]
[398929638,1766002250150,-500.0,0.00016899,2]
[398929639,1766002250159,-10000.0,0.000169,2]
[398929640,1766002250169,-302.01604806,0.000169,2]
[398929641,1766002250178,-1398.69219027,0.000169,2]
[398929642,1766002250187,-18870.99957867,0.000169,2]
[398929643,1766002250197,-21848.83616192,0.000169,2]
[398929644,1766002250206,-698.29122791,0.000169,2]
[398929645,1766002250216,-649.9267196,0.000169,2]
[398929646,1766002250225,-150.0,0.00016901,2]
[398929647,1766002250235,-150.0,0.00016903,2]
[398929648,1766002250248,-150.0,0.00016907,2]
[398929649,1766002250259,-150.0,0.00016908,2]
[398929650,1766002250269,-150.0,0.00016911,2]
[398929651,1766002250279,-150.0,0.00016912,2]
[398929652,1766002250289,-150.0,0.00016924,2]
[398929653,1766002250299,-150.0,0.00016928,2]
[398929654,1766002250308,-1477.19,0.00016934,2]
[398929655,1766002250318,-150.0,0.00016934,2]
[398929656,1766002250328,-3292.0,0.00016941,2]
[398929657,1766002250338,-150.0,0.00016945,2]
[398929658,1766002250348,-150.0,0.00016947,2]
[398929659,1766002250357,-150.0,0.00016949,2]
[398929660,1766002250367,-278.34012987,0.00016949,2]
[398929661,1766002250377,-150.0,0.00016949,2]
[398929662,1766002250386,-150.0,0.00016957,2]
[398929663,1766002250398,-2198.0,0.00016959,2]
[398929664,1766002250409,-150.0,0.0001696,2]
[398929665,1766002250419,-150.0,0.00016966,2]
[398929666,1766002250431,-500.0,0.00016973,2]
[398929667,1766002250441,-150.0,0.00016973,2]
[398929668,1766002250451,-736.0,0.00016982,2]
[398929669,1766002250460,-500.0,0.00016983,2]
[398929670,1766002250470,-164.02,0.00016985,2]
[398929671,1766002250479,-500.0,0.00016986,2]
[398929672,1766002250491,-500.0,0.00016986,2]
[398929673,1766002250500,-500.0,0.00016986,2]
[398929674,1766002250509,-500.0,0.00016986,2]
[398929675,1766002250519,-500.0,0.00016986,2]
[398929676,1766002250528,-500.0,0.00016986,2]
[398929677,1766002250537,-500.0,0.00016986,2]
[398929678,1766002250547,-500.0,0.00016986,2]
[398929679,1766002250556,-500.0,0.00016986,2]
[398929680,1766002250566,-500.0,0.00016986,2]
[398929681,1766002250574,-500.0,0.00016986,2]
[398929682,1766002250583,-500.0,0.00016986,2]
[398929683,1766002250592,-500.0,0.00016986,2]
[398929684,1766002250601,-500.0,0.00016986,2]
[398929685,1766002250610,-500.0,0.00016986,2]
[398929686,1766002250619,-500.0,0.00016986,2]
[398929687,1766002250628,-500.0,0.00016986,2]
[398929688,1766002250637,-313615.58,0.00016986,2]
[398929689,1766002250647,-187.73749216,0.00016986,2]
[398929690,1766002250657,-150.0,0.00016986,2]
[398929691,1766002250666,-150.0,0.00016986,2]
[398929692,1766002250676,-150.65844905,0.00016986,2]
[398929693,1766002250685,-151.17525831,0.00016986,2]
[398929694,1766002250694,-150.00000001,0.00016986,2]
[398929695,1766002250704,-280.62987413,0.00016986,2]
[398929696,1766002250713,-160.8607052,0.00016986,2]
[398929697,1766002250722,-150.00000001,0.00016986,2]
[398929698,1766002250731,-151.0803606,0.00016986,2]
[398929699,1766002250741,-150.91550183,0.00016986,2]
[398929700,1766002250751,-150.00000001,0.00016986,2]
[398929701,1766002250760,-153.15599333,0.00016986,2]
[398929702,1766002250770,-1444.66266735,0.0001699,2]
[398929703,1766002250779,-1444.66266735,0.0001699,2]
[398929704,1766002250788,-150.0,0.0001699,2]
[398929705,1766002250797,-151.0,0.00016994,2]
[398929706,1766002250807,-500.0,0.00016996,2]
[398929707,1766002250816,-238.49401825,0.00016996,2]
[398929708,1766002250825,-500.0,0.00016996,2]